fUST/lending_fUST_20250222
["ID","MTS","AMOUNT","RATE_DAILY","PERIOD"]
[354003378,1740179246253,-500.0,0.00014899,2]
[354003379,1740179246276,-500.0,0.00014899,2]
[354003380,1740179246299,-500.0,0.00014899,2]
[354003381,1740179246321,-500.0,0.00014899,2]
[354003382,1740179246344,-500.0,0.00014899,2]
[354003383,1740179246369,-995509.51812591,0.000149,5]
[354003384,1740179246423,-235.02946056,0.00013698,2]
[354003385,1740179246447,-20995.61977344,0.000149,5]
[354003386,1740179246483,-450.4710928,0.00013698,2]
[354003445,1740179432954,-250.0,0.00013312,2]
[354003446,1740179432963,-363.73254692,0.0001356,2]
[354003448,1740179432975,-4636.26745308,0.0001356,2]
[354003450,1740179432984,-300.0,0.00013697,2]
[354003452,1740179432994,-49.5289072,0.00013698,2]
[354003454,1740179433004,-442.13916631,0.00013698,2]
[354003456,1740179433013,-500.0,0.00013698,2]
[354003458,1740179433022,-500.0,0.00013698,2]
[354003460,1740179433032,-718.95,0.00013698,2]
[354003462,1740179433041,-500.0,0.00013698,2]
[354003464,1740179433051,-500.0,0.00013698,2]
[354003466,1740179433061,-500.0,0.00013698,2]
[354003468,1740179433070,-164.66805127,0.00013698,2]
[354003469,1740179433079,-500.0,0.00013698,2]
[354003471,1740179433089,-500.0,0.00013698,2]
[354003473,1740179433098,-500.0,0.00013698,2]
[354003474,1740179433107,-500.0,0.00013698,2]
[354003475,1740179433116,-500.0,0.00013698,2]
[354003476,1740179433125,-500.0,0.00013698,2]
[354003477,1740179433135,-500.0,0.00013698,2]
[354003478,1740179433144,-500.0,0.00013698,2]
[354003479,1740179433154,-500.0,0.00013698,2]
[354003480,1740179433163,-500.0,0.00013698,2]
[354003481,1740179433172,-216.10846698,0.00013698,2]
[354003482,1740179434442,-283.89153302,0.00013698,2]
[354003483,1740179434452,-500.0,0.00013698,2]
[354003484,1740179434463,-500.49073257,0.00013698,2]
[354003485,1740179434472,-500.0,0.00013698,2]
[354003486,1740179434482,-500.0,0.00013698,2]
[354003487,1740179434492,-500.0,0.00013698,2]
[354003488,1740179434501,-500.0,0.00013698,2]
[354003489,1740179434511,-500.0,0.00013698,2]
[354003490,1740179434521,-500.0,0.00013698,2]
[354003491,1740179434530,-500.0,0.00013698,2]
[354003492,1740179434540,-500.0,0.00013698,2]
[354003493,1740179434550,-500.0,0.00013698,2]
[354003494,1740179434559,-500.0,0.00013698,2]
[354003495,1740179434569,-249.59345556,0.00013698,2]
[354003496,1740179434579,-500.0,0.00013698,2]
[354003497,1740179434588,-500.0,0.00013698,2]
[354003498,1740179434598,-500.0,0.00013698,2]
[354003499,1740179434608,-500.71347731,0.00013698,2]
[354003500,1740179434617,-500.0,0.00013698,2]
[354003501,1740179434627,-500.0,0.00013698,2]
[354003502,1740179434637,-481.26120154,0.00013698,2]
[354003503,1740179434701,-18.73879846,0.00013698,2]
[354003504,1740179434711,-500.0,0.00013698,2]
[354003505,1740179434720,-500.0,0.00013698,2]
[354003506,1740179434731,-552.15397443,0.00013698,2]
[354003507,1740179434740,-500.0,0.00013698,2]
[354003508,1740179434749,-500.0,0.00013698,2]
[354003509,1740179434759,-621.29,0.00013698,2]
[354003510,1740179434768,-555.39,0.00013698,2]
[354003511,1740179434778,-235.38559993,0.00013698,2]
[354003512,1740179434788,-500.0,0.00013698,2]
[354003513,1740179434797,-718.95,0.0001378,2]
[354003514,1740179434806,-500.0,0.0001378,2]
[354003515,1740179434816,-500.0,0.0001378,2]
[354003516,1740179434830,-500.0,0.0001378,2]
[354003517,1740179434839,-500.0,0.0001378,2]
[354003518,1740179434848,-297.5,0.0001378,2]
[354003519,1740179434858,-500.0,0.0001378,2]
[354003520,1740179434870,-500.0,0.0001378,2]
[354003521,1740179434880,-500.0,0.0001378,2]
[354003522,1740179434890,-532.80427398,0.0001378,2]
[354003523,1740179434904,-629.06455609,0.0001378,2]
[354003524,1740179434916,-500.0,0.0001378,2]
[354003525,1740179434926,-718.95,0.00013863,2]
[354003526,1740179434936,-500.0,0.00013863,2]
[354003527,1740179434946,-500.0,0.00013863,2]
[354003528,1740179434956,-500.0,0.00013863,2]
[354003529,1740179434966,-500.0,0.00013863,2]
[354003530,1740179434976,-718.95,0.00013945,2]
[354003531,1740179434985,-432.2192683,0.00013945,2]
[354003532,1740179434995,-500.0,0.00013945,2]
[354003533,1740179435005,-500.0,0.00013945,2]
[354003534,1740179435015,-500.0,0.00013945,2]
[354003535,1740179435024,-718.95,0.00014027,2]
[354003536,1740179435034,-500.0,0.00014027,2]
[354003537,1740179435043,-500.0,0.00014027,2]
[354003538,1740179435053,-500.0,0.00014027,2]
[354003539,1740179435064,-153.0,0.00014082,2]
[354003540,1740179435074,-154.7783581,0.00014082,2]
[354003541,1740179435084,-153.0,0.000141,2]
[354003542,1740179435094,-154.7783581,0.000141,2]
[354003543,1740179435103,-718.95,0.00014109,2]
[354003544,1740179435114,-582.96769006,0.00014109,2]
[354003545,1740179435123,-500.0,0.00014109,2]
[354003546,1740179435133,-500.0,0.00014109,2]
[354003547,1740179435143,-718.95,0.00014191,2]
[354003548,1740179435152,-500.0,0.00014191,2]
[354003549,1740179435162,-500.0,0.00014191,2]
[354003550,1740179435172,-153.0,0.000142,2]
[354003551,1740179435182,-718.95,0.00014273,2]
[354003552,1740179435192,-500.0,0.00014273,2]
[354003553,1740179435202,-500.0,0.00014273,2]
[354003554,1740179435212,-718.95,0.00014356,2]
[354003555,1740179435222,-500.0,0.00014356,2]
[354003556,1740179435232,-500.0,0.00014356,2]
[354003557,1740179435242,-718.95,0.00014438,2]
[354003558,1740179435270,-500.0,0.00014438,2]
[354003559,1740179435292,-500.0,0.00014438,2]
[354003560,1740179435306,-718.95,0.0001452,2]
[354003561,1740179435316,-187.22449611,0.0001452,2]
[354003562,1740179435330,-312.77550389,0.0001452,2]
[354003563,1740179435339,-278.26949628,0.0001452,2]
[354003564,1740179435356,-221.73050372,0.0001452,2]
[354003565,1740179435365,-819.7530515,0.00014601,2]
[354003566,1740179435375,-39.90925122,0.00014602,2]
[354003567,1740179435387,-679.04074878,0.00014602,2]
[354003568,1740179435396,-500.0,0.00014602,2]
[354003569,1740179435406,-500.0,0.00014602,2]
[354003570,1740179435415,-718.95,0.00014684,2]
[354003571,1740179435425,-170.13607163,0.00014684,2]
[354003572,1740179435437,-329.86392837,0.00014684,2]
[354003573,1740179435447,-500.0,0.00014684,2]
[354003574,1740179435457,-718.95,0.00014767,2]
[354003575,1740179435467,-286.02774149,0.00014767,2]
[354003576,1740179435476,-500.0,0.00014767,2]
[354003577,1740179435486,-11686.3339008,0.000148,2]
[354003578,1740179435506,-16646.999479,0.000148,2]
[354003579,1740179435530,-999.7066692,0.000148,2]
[354003602,1740179438624,-272.08,0.00013179,2]
[354003603,1740179438636,-2317.70617837,0.00013179,2]
[354003604,1740179438645,-500.0,0.00013698,2]
[354003605,1740179438655,-500.0,0.00014519,2]
[354003606,1740179438664,-4528.21993968,0.000148,2]
[354003607,1740179438675,-5118.94808904,0.000148,2]
[354003608,1740179438684,-4482.65191096,0.000148,2]
[354003609,1740179438695,-2110.57618151,0.000148,2]
[354003610,1740179438705,-553.36320078,0.000148,2]
[354003611,1740179438715,-718.95,0.00014849,2]
[354003612,1740179438724,-500.0,0.00014849,2]
[354003613,1740179438733,-500.0,0.00014873,2]
[354003614,1740179438742,-218.47740289,0.00014873,2]
[354003615,1740179438751,-7438.69753278,0.00014887,2]
[354003616,1740179438761,-214.49767767,0.00014889,2]
[354003618,1740179438770,-201.61030441,0.00014889,2]
[354003620,1740179438779,-500.0,0.00014889,2]
[354003622,1740179438789,-276.19242807,0.00014889,2]
[354003624,1740179438798,-500.0,0.00014889,2]
[354003626,1740179438807,-500.0,0.00014889,2]
[354003628,1740179438816,-500.0,0.00014889,2]
[354003630,1740179438828,-500.0,0.00014889,2]
[354003634,1740179438837,-157.77441164,0.00014889,2]
[354003637,1740179438846,-313.73096422,0.00014889,2]
[354003640,1740179438855,-500.0,0.00014889,2]
[354003643,1740179438864,-147218.37033892,0.0001489,7]
[354003646,1740179438878,-8076.17576295,0.0001489,7]
[354003650,1740179438889,-46348.78358023,0.0001489,7]
[354003652,1740179438901,-1000.0,0.0001489,7]
[354003654,1740179438912,-500.0,0.0001489,7]
[354003660,1740179440372,-127497.471721,0.0001489,7]
[354003807,1740179443088,-5600.49670519,0.0001489,7]
[354003809,1740179443100,-991690.53815809,0.0001489,7]
[354003811,1740179443109,-100743.33463231,0.000149,5]
[354003813,1740179443120,-34185.20128111,0.000149,5]
[354004132,1740179445329,-154.2903469,0.000142,2]
[354004134,1740179445338,-78143.06564959,0.000149,5]
[354004141,1740179445398,-471801.53566676,0.000149,5]
[354004143,1740179445408,-568.71632564,0.000149,2]
[354004145,1740179445418,-2402.42,0.000149,2]
[354004147,1740179445428,-547351.454738,0.000149,2]
[354004149,1740179445438,-328.73233768,0.00014931,2]
[354004273,1740179446863,-500.0,0.00014519,2]
[354004275,1740179446873,-1306.75766232,0.00014931,2]
[354004277,1740179446883,-34.66324768,0.00014931,2]
[354004281,1740179446914,-684.28675232,0.00014931,2]
[354004283,1740179446923,-500.0,0.00014931,2]
[354004285,1740179446933,-200.44748055,0.00015,2]
[354004287,1740179446942,-974.22679313,0.00015,4]
[354004299,1740179447036,-17179.91757599,0.00015,4]
[354010711,1740179975778,200.821004,9.041e-05,2]
[354010720,1740180515303,-150.0,0.0001,7]
[354010721,1740180517980,-88.69347699,0.0001,7]
[354010723,1740180550138,-7980.30432915,0.00012818,2]
[354010724,1740180573199,-16919.69567085,0.00012818,2]
[354010725,1740180573232,-28.0653226,0.00013212,2]
[354010759,1740180632066,-335.96581253,0.00013212,2]
[354010760,1740180632075,-166.66666666,0.00013573,2]
[354010761,1740180632085,-152.34220997,0.00013598,2]
[354010762,1740180632094,-500.0,0.00013673,2]
[354010763,1740180632103,-500.0,0.00013673,2]
[354010764,1740180632112,-268.79180605,0.00013673,2]
[354010765,1740180632122,-151.07829524,0.00013673,2]
[354010766,1740180632132,-302.0,0.0001369,2]
[354010767,1740180632141,-300.0,0.00013697,2]
[354010768,1740180632150,-500.0,0.00013698,2]
[354010769,1740180632159,-500.0,0.00013698,2]
[354010770,1740180632171,-501.13095809,0.00013698,2]
[354010771,1740180632180,-500.0,0.00013698,2]
[354010772,1740180632190,-500.0,0.00013698,2]
[354010773,1740180632199,-502.43778743,0.00013698,2]
[354010774,1740180632210,-559.3837438,0.00013698,2]
[354010775,1740180632220,-500.0,0.00013698,2]
[354010776,1740180632230,-500.0,0.00013698,2]
[354010777,1740180632239,-500.0,0.00013698,2]
[354010778,1740180632250,-500.0,0.00013698,2]
[354010779,1740180632259,-500.0,0.00013698,2]
[354010780,1740180632268,-500.0,0.00013698,2]
[354010781,1740180632278,-500.0,0.00013698,2]
[354010782,1740180632288,-500.0,0.00013698,2]
[354010783,1740180632298,-500.0,0.00013698,2]
[354010784,1740180632307,-500.0,0.00013698,2]
[354010785,1740180632316,-500.0,0.00013698,2]
[354010786,1740180632325,-500.0,0.00013698,2]
[354010787,1740180632335,-500.22166683,0.00013698,2]
[354010788,1740180632344,-500.0,0.00013698,2]
[354010789,1740180632353,-500.0,0.00013698,2]
[354010790,1740180632362,-500.76729494,0.00013698,2]
[354010791,1740180632372,-502.51266917,0.00013698,2]
[354010792,1740180632381,-500.0,0.00013698,2]
[354010793,1740180632391,-500.0,0.00013698,2]
[354010794,1740180632400,-500.0,0.00013698,2]
[354010795,1740180632410,-500.14477961,0.00013698,2]
[354010796,1740180632420,-500.0,0.00013698,2]
[354010797,1740180632430,-500.0,0.00013698,2]
[354010798,1740180632439,-500.0,0.00013698,2]
[354010799,1740180632448,-375.75067271,0.00013698,2]
[354010800,1740180632461,-124.24932729,0.00013698,2]
[354010801,1740180632470,-229.8,0.00013698,2]
[354010802,1740180632480,-500.0,0.00013698,2]
[354010803,1740180632489,-507.80469073,0.00013698,2]
[354010804,1740180632498,-500.0,0.00013698,2]
[354010805,1740180632507,-500.0,0.00013698,2]
[354010806,1740180632516,-500.0,0.00013698,2]
[354010807,1740180632525,-500.0,0.00013698,2]
[354010808,1740180632535,-500.0,0.00013698,2]
[354010809,1740180632543,-500.0,0.00013698,2]
[354010810,1740180632552,-500.0,0.00013698,2]
[354010811,1740180632562,-500.0,0.00013698,2]
[354010812,1740180632570,-500.0,0.00013698,2]
[354010813,1740180632579,-500.0,0.00013698,2]
[354010814,1740180632588,-500.0,0.00013698,2]
[354010815,1740180632598,-500.0,0.00013698,2]
[354010816,1740180632607,-500.0,0.00013698,2]
[354010817,1740180632616,-500.0,0.00013698,2]
[354010818,1740180632626,-500.0,0.00013698,2]
[354010819,1740180632636,-500.0,0.00013698,2]
[354010820,1740180632645,-341.44938525,0.00013698,2]
[354010821,1740180632655,-152.30703599,0.00013698,2]
[354010822,1740180632664,-605.88,0.00013698,2]
[354010823,1740180632675,-500.0,0.00013698,2]
[354010824,1740180632684,-500.0,0.00013698,2]
[354010825,1740180632694,-612.63821157,0.00013698,2]
[354010826,1740180632703,-500.0,0.00013698,2]
[354010827,1740180632712,-500.0,0.00013698,2]
[354010828,1740180632722,-500.0,0.00013698,2]
[354010829,1740180632732,-500.0,0.00013698,2]
[354010830,1740180632741,-500.0,0.00013698,2]
[354010831,1740180632750,-500.0,0.00013698,2]
[354010832,1740180632759,-500.0,0.00013698,2]
[354010833,1740180632769,-503.67975763,0.00013698,2]
[354010834,1740180632779,-500.0,0.00013698,2]
[354010835,1740180632788,-500.0,0.00013698,2]
[354010836,1740180632797,-500.0,0.00013698,2]
[354010837,1740180632807,-500.0,0.00013698,2]
[354010838,1740180632816,-500.0,0.00013698,2]
[354010839,1740180632825,-500.0,0.00013698,2]
[354010840,1740180632835,-500.0,0.00013698,2]
[354010841,1740180632844,-500.0,0.00013698,2]
[354010842,1740180632853,-317.61058948,0.00013698,2]
[354010843,1740180632865,-500.0,0.00013698,2]
[354010844,1740180632875,-500.0,0.00013698,2]
[354010845,1740180632884,-385.87795808,0.00013698,2]
[354010846,1740180632894,-508.66813475,0.00013698,2]
[354010847,1740180632916,-500.0,0.00013698,2]
[354010848,1740180632938,-500.0,0.00013698,2]
[354010849,1740180632959,-500.0,0.00013698,2]
[354010850,1740180632979,-500.0,0.00013698,2]
[354010851,1740180632999,-500.0,0.00013698,2]
[354010852,1740180633020,-500.0,0.00013698,2]
[354010853,1740180633041,-500.0,0.00013698,2]
[354010854,1740180633062,-500.0,0.00013698,2]
[354010855,1740180633082,-500.0,0.00013698,2]
[354010856,1740180633105,-500.0,0.00013698,2]
[354010857,1740180633126,-502.8753739,0.00013698,2]
[354010858,1740180633148,-500.0,0.00013698,2]
[354010859,1740180633171,-500.0,0.00013698,2]
[354010860,1740180633184,-503.36313524,0.00013698,2]
[354010861,1740180633194,-500.0,0.00013698,2]
[354010862,1740180633204,-500.0,0.00013698,2]
[354010863,1740180633217,-500.0,0.00013698,2]
[354010864,1740180633226,-500.0,0.00013698,2]
[354010865,1740180633236,-367.82520372,0.00013698,2]
[354010866,1740180633246,-500.0,0.00013698,2]
[354010867,1740180633257,-500.0,0.00013698,2]
[354010868,1740180633266,-500.0,0.00013698,2]
[354010869,1740180633382,-503.31730579,0.00013698,2]
[354010870,1740180633392,-500.0,0.00013698,2]
[354010871,1740180633402,-500.0,0.00013698,2]
[354010872,1740180633411,-500.0,0.00013698,2]
[354010873,1740180633422,-500.0,0.00013698,2]
[354010874,1740180633431,-500.0,0.00013698,2]
[354010875,1740180633441,-500.0,0.00013698,2]
[354010876,1740180633451,-500.0,0.00013698,2]
[354010877,1740180633460,-500.0,0.00013698,2]
[354010878,1740180633470,-500.0,0.00013698,2]
[354010879,1740180633480,-500.0,0.00013698,2]
[354010880,1740180633490,-500.0,0.00013698,2]
[354010881,1740180633500,-500.0,0.00013698,2]
[354010882,1740180633509,-500.0,0.00013698,2]
[354010883,1740180633518,-500.0,0.00013698,2]
[354010884,1740180633528,-500.0,0.00013698,2]
[354010885,1740180633537,-500.0,0.00013698,2]
[354010886,1740180633546,-500.0,0.00013698,2]
[354010887,1740180633555,-500.0,0.00013698,2]
[354010888,1740180633565,-504.66679616,0.00013698,2]
[354010889,1740180633574,-500.0,0.00013698,2]
[354010890,1740180633583,-500.0,0.00013698,2]
[354010891,1740180633593,-500.0,0.00013698,2]
[354010892,1740180633603,-500.0,0.00013698,2]
[354010893,1740180633612,-500.0,0.00013698,2]
[354010894,1740180633622,-500.0,0.00013698,2]
[354010895,1740180633631,-500.0,0.00013698,2]
[354010896,1740180633641,-500.0,0.00013698,2]
[354010897,1740180633650,-500.0,0.00013698,2]
[354010898,1740180633660,-500.0,0.00013698,2]
[354010899,1740180633669,-500.0,0.00013698,2]
[354010900,1740180633681,-500.0,0.00013698,2]
[354010901,1740180633690,-1007.78523868,0.00013698,2]
[354010902,1740180633700,-500.0,0.00013698,2]
[354010903,1740180633710,-500.0,0.00013698,2]
[354010904,1740180633719,-500.0,0.00013698,2]
[354010905,1740180633730,-504.63572677,0.00013698,2]
[354010906,1740180633739,-500.0,0.00013698,2]
[354010907,1740180633749,-500.0,0.00013698,2]
[354010908,1740180633759,-505.83660186,0.00013698,2]
[354010909,1740180633769,-500.0,0.00013698,2]
[354010910,1740180633779,-500.0,0.00013698,2]
[354010911,1740180633788,-500.0,0.00013698,2]
[354010912,1740180633797,-500.0,0.00013698,2]
[354010913,1740180633807,-500.0,0.00013698,2]
[354010914,1740180633816,-500.64947104,0.00013698,2]
[354010915,1740180633826,-500.0,0.00013698,2]
[354010916,1740180633835,-500.0,0.00013698,2]
[354010917,1740180633844,-500.0,0.00013698,2]
[354010918,1740180633854,-326.75827312,0.00013698,2]
[354010919,1740180633864,-500.0,0.00013698,2]
[354010920,1740180633874,-500.0,0.00013698,2]
[354010921,1740180633883,-500.0,0.00013698,2]
[354010922,1740180633893,-500.0,0.00013698,2]
[354010923,1740180633902,-500.0,0.00013698,2]
[354010924,1740180633912,-500.0,0.00013698,2]
[354010925,1740180633923,-500.0,0.00013698,2]
[354010926,1740180633932,-500.0,0.00013698,2]
[354010927,1740180633942,-500.0,0.00013698,2]
[354010928,1740180633952,-500.0,0.00013698,2]
[354010929,1740180633961,-500.0,0.00013698,2]
[354010930,1740180633972,-500.0,0.00013698,2]
[354010931,1740180633982,-500.0,0.00013698,2]
[354010932,1740180633993,-500.0,0.00013698,2]
[354010933,1740180634003,-500.0,0.00013698,2]
[354010934,1740180634013,-500.0,0.00013698,2]
[354010935,1740180634023,-500.0,0.00013698,2]
[354010936,1740180634033,-500.0,0.00013698,2]
[354010937,1740180634043,-500.0,0.00013698,2]
[354010938,1740180634053,-500.0,0.00013698,2]
[354010939,1740180634063,-500.0,0.00013698,2]
[354010940,1740180634072,-500.0,0.00013698,2]
[354010941,1740180634082,-500.0,0.00013698,2]
[354010942,1740180634092,-500.0,0.00013698,2]
[354010943,1740180634102,-500.0,0.00013698,2]
[354010944,1740180634111,-500.0,0.00013698,2]
[354010945,1740180634120,-501.45067368,0.00013698,2]
[354010946,1740180634130,-500.0,0.00013698,2]
[354010947,1740180634140,-500.0,0.00013698,2]
[354010948,1740180634150,-500.0,0.00013698,2]
[354010949,1740180634160,-500.0,0.00013698,2]
[354010950,1740180634170,-563.27,0.00013698,2]
[354010951,1740180634180,-500.0,0.00013698,2]
[354010952,1740180634190,-500.0,0.00013698,2]
[354010953,1740180634199,-500.0,0.00013698,2]
[354010954,1740180634210,-500.0,0.00013698,2]
[354010955,1740180634220,-500.0,0.00013698,2]
[354010956,1740180634230,-500.0,0.00013698,2]
[354010957,1740180634240,-500.0,0.00013698,2]
[354010958,1740180634251,-500.0,0.00013698,2]
[354010959,1740180634260,-263.67472535,0.00013698,2]
[354010960,1740180634269,-502.56070399,0.00013698,2]
[354010961,1740180634279,-500.0,0.00013698,2]
[354010962,1740180634289,-500.0,0.00013698,2]
[354010963,1740180634299,-500.0,0.00013698,2]
[354010964,1740180634309,-554.63,0.00013698,2]
[354010965,1740180634318,-500.0,0.00013698,2]
[354010966,1740180634328,-500.0,0.00013698,2]
[354010967,1740180634337,-500.0,0.00013698,2]
[354010968,1740180634347,-500.0,0.00013698,2]
[354010969,1740180634357,-500.0,0.00013698,2]
[354010970,1740180634366,-500.0,0.00013698,2]
[354010971,1740180634376,-500.0,0.00013698,2]
[354010972,1740180634386,-500.0,0.00013698,2]
[354010973,1740180634395,-500.0,0.00013698,2]
[354010974,1740180634405,-500.0,0.00013698,2]
[354010975,1740180634415,-500.0,0.00013698,2]
[354010976,1740180634425,-500.0,0.00013698,2]
[354010977,1740180634435,-500.0,0.00013698,2]
[354010978,1740180634445,-509.45801476,0.00013698,2]
[354010979,1740180634455,-500.0,0.00013698,2]
[354010980,1740180634465,-500.0,0.00013698,2]
[354010981,1740180634474,-622.51948474,0.00013698,2]
[354010982,1740180634484,-500.0,0.00013698,2]
[354010983,1740180634494,-348.84038606,0.00013698,2]
[354010984,1740180634504,-500.66267266,0.00013698,2]
[354010985,1740180634514,-500.0,0.00013698,2]
[354010986,1740180634524,-500.0,0.00013698,2]
[354010987,1740180634534,-500.0,0.00013698,2]
[354010988,1740180634543,-500.21084091,0.00013698,2]
[354010989,1740180634553,-500.0,0.00013698,2]
[354010990,1740180634562,-500.0,0.00013698,2]
[354010991,1740180634572,-500.0,0.00013698,2]
[354010992,1740180634581,-500.0,0.00013698,2]
[354010993,1740180634591,-500.0,0.00013698,2]
[354010994,1740180634601,-500.0,0.00013698,2]
[354010995,1740180634611,-513.12,0.00013698,2]
[354010996,1740180634620,-500.0,0.00013698,2]
[354010997,1740180634630,-500.5158348,0.00013698,2]
[354010998,1740180634639,-500.0,0.00013698,2]
[354010999,1740180634648,-500.0,0.00013698,2]
[354011000,1740180634657,-500.0,0.00013698,2]
[354011001,1740180634667,-500.0,0.00013698,2]
[354011002,1740180634678,-589.5,0.00013698,2]
[354011003,1740180634687,-500.0,0.00013698,2]
[354011004,1740180634697,-500.0,0.00013698,2]
[354011005,1740180634707,-504.23495781,0.00013698,2]
[354011006,1740180634717,-500.0,0.00013698,2]
[354011007,1740180634726,-500.0,0.00013698,2]
[354011008,1740180634736,-500.0,0.00013698,2]
[354011009,1740180634745,-500.0,0.00013698,2]
[354011010,1740180634755,-500.0,0.00013698,2]
[354011011,1740180634764,-500.0,0.00013698,2]
[354011012,1740180634773,-502.01419644,0.00013698,2]
[354011013,1740180634783,-500.0,0.00013698,2]
[354011014,1740180634793,-500.0,0.00013698,2]
[354011015,1740180634802,-500.0,0.00013698,2]
[354011016,1740180634812,-500.0,0.00013698,2]
[354011017,1740180634821,-500.0,0.00013698,2]
[354011018,1740180634831,-500.0,0.00013698,2]
[354011019,1740180634840,-500.0,0.00013698,2]
[354011020,1740180634850,-500.0,0.00013698,2]
[354011021,1740180634864,-500.0,0.00013698,2]
[354011022,1740180634873,-500.0,0.00013698,2]
[354011023,1740180634883,-500.0,0.00013698,2]
[354011024,1740180634893,-500.0,0.00013698,2]
[354011025,1740180634902,-500.0,0.00013698,2]
[354011026,1740180634913,-500.0,0.00013698,2]
[354011027,1740180634923,-624.57,0.00013698,2]
[354011028,1740180634932,-500.0,0.00013698,2]
[354011029,1740180634942,-500.0,0.00013698,2]
[354011030,1740180634951,-500.0,0.00013698,2]
[354011031,1740180634961,-737.62,0.00013698,2]
[354011032,1740180634971,-500.0,0.00013698,2]
[354011033,1740180634981,-500.0,0.00013698,2]
[354011034,1740180634991,-502.01246421,0.00013698,2]
[354011035,1740180635000,-500.0,0.00013698,2]
[354011036,1740180635010,-500.0,0.00013698,2]
[354011037,1740180635019,-500.0,0.00013698,2]
[354011038,1740180635028,-500.0,0.00013698,2]
[354011039,1740180635038,-500.0,0.00013698,2]
[354011040,1740180635047,-500.0,0.00013698,2]
[354011041,1740180635057,-500.0,0.00013698,2]
[354011042,1740180635067,-500.0,0.00013698,2]
[354011043,1740180635076,-500.0,0.00013698,2]
[354011044,1740180635086,-500.0,0.00013698,2]
[354011045,1740180635095,-500.0,0.00013698,2]
[354011046,1740180635105,-500.0,0.00013698,2]
[354011047,1740180635114,-500.0,0.00013698,2]
[354011048,1740180635123,-500.0,0.00013698,2]
[354011049,1740180635132,-500.0,0.00013698,2]
[354011050,1740180635142,-500.0,0.00013698,2]
[354011051,1740180635151,-500.0,0.00013698,2]
[354011052,1740180635160,-500.0,0.00013698,2]
[354011053,1740180635169,-500.0,0.00013698,2]
[354011054,1740180635179,-500.0,0.00013698,2]
[354011055,1740180635188,-500.0,0.00013698,2]
[354011056,1740180635198,-500.0,0.00013698,2]
[354011057,1740180635210,-500.0,0.00013698,2]
[354011058,1740180635220,-1474.87,0.00013698,2]
[354011059,1740180635229,-500.0,0.00013698,2]
[354011060,1740180635238,-500.0,0.00013698,2]
[354011061,1740180635247,-500.0,0.00013698,2]
[354011062,1740180635257,-500.0,0.00013698,2]
[354011063,1740180635267,-500.0,0.00013698,2]
[354011064,1740180635277,-500.0,0.00013698,2]
[354011065,1740180635287,-500.0,0.00013698,2]
[354011066,1740180635298,-332.46123792,0.00013698,2]
[354011067,1740180635308,-500.0,0.00013698,2]
[354011068,1740180635317,-610.05,0.00013698,2]
[354011069,1740180635327,-500.0,0.00013698,2]
[354011070,1740180635337,-500.0,0.00013698,2]
[354011071,1740180635347,-500.0,0.00013698,2]